[Event "Titled Tuesday Blitz November 01 Late 2022"]
[White "Aghasiyev, Kamal"]
[Black "Makarian, Rudik"]
[WhiteFideId "13402854"]
[BlackFideId "44105681"]
[WhiteElo "2341"]
[BlackElo "2405"]
[Result "1-0"]
[Round "09"]
[TimeControl "180+1"]
[Date "2022.11.01"]
[WhiteClock "0:00:04"]
[BlackClock "0:00:02"]

1. d4 {[%clk 0:03:00]}  d6 {[%clk 0:02:55]} 2. e4 {[%clk 0:02:56]}  Nf6 {[%clk 0:02:55]} 3. Bd3 {[%clk 0:02:55]}  e5 {[%clk 0:02:56]} 4. c3 {[%clk 0:02:54]}  Nc6 {[%clk 0:02:54]} 5. Nf3 {[%clk 0:02:48]}  Bg4 {[%clk 0:02:55]} 6. Be3 {[%clk 0:02:48]}  d5 {[%clk 0:02:49]} 7. Qa4 {[%clk 0:02:33]}  Bxf3 {[%clk 0:02:40]} 8. gxf3 {[%clk 0:02:33]}  exd4 {[%clk 0:02:34]} 9. cxd4 {[%clk 0:02:33]}  Bb4+ {[%clk 0:02:29]} 10. Nc3 {[%clk 0:02:29]}  O-O {[%clk 0:02:28]} 11. a3 {[%clk 0:02:17]}  Ba5 {[%clk 0:02:03]} 12. e5 {[%clk 0:01:55]}  Nh5 {[%clk 0:02:00]} 13. b4 {[%clk 0:01:44]}  Bb6 {[%clk 0:02:00]} 14. Ne2 {[%clk 0:01:43]}  f5 {[%clk 0:01:55]} 15. f4 {[%clk 0:01:40]}  g6 {[%clk 0:01:56]} 16. h4 {[%clk 0:01:26]}  Ng7 {[%clk 0:01:53]} 17. Bb5 {[%clk 0:01:22]}  a5 {[%clk 0:01:49]} 18. Bxc6 {[%clk 0:01:07]}  axb4 {[%clk 0:01:48]} 19. Qd1 {[%clk 0:01:07]}  bxc6 {[%clk 0:01:46]} 20. axb4 {[%clk 0:01:07]}  h5 {[%clk 0:01:44]} 21. Kf1 {[%clk 0:01:00]}  Kh7 {[%clk 0:01:40]} 22. Kg2 {[%clk 0:01:00]}  Ne6 {[%clk 0:01:40]} 23. Kg3 {[%clk 0:00:55]}  Rxa1 {[%clk 0:01:33]} 24. Qxa1 {[%clk 0:00:54]}  Qa8 {[%clk 0:01:34]} 25. Rc1 {[%clk 0:00:50]}  Qxa1 {[%clk 0:01:26]} 26. Rxa1 {[%clk 0:00:50]}  Kg7 {[%clk 0:01:22]} 27. Rc1 {[%clk 0:00:50]}  Nd8 {[%clk 0:01:20]} 28. Nc3 {[%clk 0:00:49]}  Kf7 {[%clk 0:01:19]} 29. b5 {[%clk 0:00:49]}  Ke6 {[%clk 0:01:15]} 30. bxc6 {[%clk 0:00:49]}  Nxc6 {[%clk 0:01:14]} 31. Nb5 {[%clk 0:00:50]}  Ne7 {[%clk 0:01:04]} 32. Nxc7+ {[%clk 0:00:50]}  Bxc7 {[%clk 0:01:04]} 33. Rxc7 {[%clk 0:00:50]}  Rc8 {[%clk 0:01:04]} 34. Rxc8 {[%clk 0:00:44]}  Nxc8 {[%clk 0:01:04]} 35. Kf3 {[%clk 0:00:43]}  Kd7 {[%clk 0:01:04]} 36. Ke2 {[%clk 0:00:43]}  Kc6 {[%clk 0:01:05]} 37. Kd3 {[%clk 0:00:44]}  Kb5 {[%clk 0:01:02]} 38. Kc3 {[%clk 0:00:43]}  Na7 {[%clk 0:01:02]} 39. Kb3 {[%clk 0:00:40]}  Nc6 {[%clk 0:01:03]} 40. Kc3 {[%clk 0:00:40]}  Nd8 {[%clk 0:01:02]} 41. Kb3 {[%clk 0:00:38]}  Ne6 {[%clk 0:01:03]} 42. Kc3 {[%clk 0:00:37]}  Nd8 {[%clk 0:00:58]} 43. Kb3 {[%clk 0:00:37]}  Kc6 {[%clk 0:00:59]} 44. Kb4 {[%clk 0:00:36]}  Nf7 {[%clk 0:00:59]} 45. Ka5 {[%clk 0:00:33]}  Nh6 {[%clk 0:00:59]} 46. f3 {[%clk 0:00:32]}  Nf7 {[%clk 0:00:58]} 47. Ka6 {[%clk 0:00:31]}  Nd8 {[%clk 0:00:58]} 48. Ka5 {[%clk 0:00:30]}  Ne6 {[%clk 0:00:55]} 49. Ka6 {[%clk 0:00:30]}  Nc7+ {[%clk 0:00:56]} 50. Ka5 {[%clk 0:00:29]}  Nb5 {[%clk 0:00:55]} 51. Kb4 {[%clk 0:00:26]}  Kb6 {[%clk 0:00:51]} 52. Bf2 {[%clk 0:00:24]}  Nc7 {[%clk 0:00:47]} 53. Be3 {[%clk 0:00:24]}  Na6+ {[%clk 0:00:46]} 54. Ka4 {[%clk 0:00:23]}  Nb8 {[%clk 0:00:44]} 55. Bd2 {[%clk 0:00:16]}  Nc6 {[%clk 0:00:41]} 56. Bc3 {[%clk 0:00:15]}  Nb8 {[%clk 0:00:31]} 57. Ba5+ {[%clk 0:00:15]}  Kc6 {[%clk 0:00:31]} 58. Bd2 {[%clk 0:00:13]}  Nd7 {[%clk 0:00:31]} 59. Kb4 {[%clk 0:00:12]}  Nb6 {[%clk 0:00:32]} 60. Be3 {[%clk 0:00:09]}  Nc4 {[%clk 0:00:31]} 61. Bc1 {[%clk 0:00:09]}  Kb6 {[%clk 0:00:30]} 62. e6 {[%clk 0:00:06]}  Kc6 {[%clk 0:00:22]} 63. e7 {[%clk 0:00:06]}  Kd7 {[%clk 0:00:22]} 64. Kc5 {[%clk 0:00:07]}  Kxe7 {[%clk 0:00:17]} 65. Kxd5 {[%clk 0:00:07]}  Nb6+ {[%clk 0:00:16]} 66. Kc6 {[%clk 0:00:07]}  Nd7 {[%clk 0:00:17]} 67. Ba3+ {[%clk 0:00:06]}  Ke8 {[%clk 0:00:16]} 68. Kd6 {[%clk 0:00:06]}  Nb6 {[%clk 0:00:13]} 69. Ke6 {[%clk 0:00:06]}  Nc4 {[%clk 0:00:14]} 70. Bc1 {[%clk 0:00:05]}  Nb6 {[%clk 0:00:12]} 71. Kf6 {[%clk 0:00:05]}  Nd5+ {[%clk 0:00:11]} 72. Kxg6 {[%clk 0:00:05]}  Ne7+ {[%clk 0:00:11]} 73. Kxh5 {[%clk 0:00:05]}  Kf7 {[%clk 0:00:12]} 74. Kg5 {[%clk 0:00:05]}  Ke6 {[%clk 0:00:08]} 75. h5 {[%clk 0:00:05]}  Kf7 {[%clk 0:00:05]} 76. h6 {[%clk 0:00:06]}  Nc6 {[%clk 0:00:03]} 77. Bb2 {[%clk 0:00:04]}  Nb4 {[%clk 0:00:02]} 78. d5 {[%clk 0:00:04]}  Kg8 {[%clk 0:00:02]} 79. Kg6 {[%clk 0:00:04]}  Nd3 {[%clk 0:00:02]} 80. h7+ {[%clk 0:00:04]} 1-0


[Site "https://www.chess.com"]

[Event "Titled Tuesday Blitz November 01 Late 2022"]
[White "Arnold, Ken"]
[Black "Kanyamarala, Trisha"]
[WhiteFideId "2056836"]
[BlackFideId "45004722"]
[WhiteElo "2325"]
[BlackElo "2099"]
[Result "0-1"]
[Round "09"]
[TimeControl "180+1"]
[Date "2022.11.02"]
[WhiteClock "0:02:01"]
[BlackClock "0:01:43"]

1. d4 {[%clk 0:03:00]}  Nf6 {[%clk 0:02:55]} 2. c4 {[%clk 0:03:00]}  e6 {[%clk 0:02:55]} 3. Nc3 {[%clk 0:03:01]}  Bb4 {[%clk 0:02:54]} 4. Qc2 {[%clk 0:02:59]}  d5 {[%clk 0:02:54]} 5. a3 {[%clk 0:02:51]}  Bxc3+ {[%clk 0:02:54]} 6. Qxc3 {[%clk 0:02:51]}  O-O {[%clk 0:02:53]} 7. Bg5 {[%clk 0:02:51]}  dxc4 {[%clk 0:02:53]} 8. Qxc4 {[%clk 0:02:50]}  b6 {[%clk 0:02:53]} 9. f3 {[%clk 0:02:45]}  Ba6 {[%clk 0:02:53]} 10. Qc3 {[%clk 0:02:45]}  Nbd7 {[%clk 0:02:48]} 11. Rc1 {[%clk 0:02:43]}  c5 {[%clk 0:02:46]} 12. dxc5 {[%clk 0:02:42]}  Nxc5 {[%clk 0:02:46]} 13. b4 {[%clk 0:02:37]}  Ncd7 {[%clk 0:02:39]} 14. e4 {[%clk 0:02:33]}  Bxf1 {[%clk 0:02:29]} 15. Kxf1 {[%clk 0:02:33]}  Nxe4 {[%clk 0:01:56]} 16. Bxd8 {[%clk 0:02:25]}  Nxc3 {[%clk 0:01:56]} 17. Be7 {[%clk 0:02:13]}  Rfc8 {[%clk 0:01:46]} 18. Ne2 {[%clk 0:02:04]}  Nd5 {[%clk 0:01:46]} 19. Bg5 {[%clk 0:02:01]}  Ne5 {[%clk 0:01:43]} 0-1


[Site "https://www.chess.com"]

[Event "Titled Tuesday Blitz November 01 Late 2022"]
[White "Bettalli, Francesco"]
[Black "Shapiro, Daniel"]
[WhiteFideId "2816453"]
[BlackFideId "2001780"]
[WhiteElo "2216"]
[BlackElo "2292"]
[Result "0-1"]
[Round "09"]
[TimeControl "180+1"]
[Date "2022.11.02"]
[WhiteClock "0:00:13"]
[BlackClock "0:00:15"]

1. d4 {[%clk 0:03:00]}  Nf6 {[%clk 0:02:59]} 2. Nc3 {[%clk 0:03:00]}  d5 {[%clk 0:02:50]} 3. Bg5 {[%clk 0:02:58]}  Nbd7 {[%clk 0:02:49]} 4. Qd3 {[%clk 0:02:56]}  g6 {[%clk 0:02:48]} 5. e4 {[%clk 0:02:50]}  dxe4 {[%clk 0:02:46]} 6. Nxe4 {[%clk 0:02:51]}  Bg7 {[%clk 0:02:46]} 7. O-O-O {[%clk 0:02:51]}  b6 {[%clk 0:02:40]} 8. g3 {[%clk 0:02:37]}  Bb7 {[%clk 0:02:32]} 9. Bg2 {[%clk 0:02:36]}  Qc8 {[%clk 0:02:26]} 10. Ne2 {[%clk 0:02:31]}  O-O {[%clk 0:02:25]} 11. Rhe1 {[%clk 0:02:29]}  Re8 {[%clk 0:02:07]} 12. N2c3 {[%clk 0:02:25]}  a6 {[%clk 0:01:51]} 13. Nxf6+ {[%clk 0:02:11]}  Bxf6 {[%clk 0:01:43]} 14. Bxf6 {[%clk 0:02:08]}  Nxf6 {[%clk 0:01:43]} 15. Bxb7 {[%clk 0:02:07]}  Qxb7 {[%clk 0:01:43]} 16. Re2 {[%clk 0:02:01]}  Rad8 {[%clk 0:01:40]} 17. Ne4 {[%clk 0:01:48]}  Nxe4 {[%clk 0:01:37]} 18. Qxe4 {[%clk 0:01:49]}  Qxe4 {[%clk 0:01:35]} 19. Rxe4 {[%clk 0:01:50]}  Rd6 {[%clk 0:01:28]} 20. c3 {[%clk 0:01:43]}  e6 {[%clk 0:01:28]} 21. Kc2 {[%clk 0:01:42]}  Rc8 {[%clk 0:01:26]} 22. Rde1 {[%clk 0:01:40]}  Kg7 {[%clk 0:01:23]} 23. f4 {[%clk 0:01:38]}  c5 {[%clk 0:01:14]} 24. dxc5 {[%clk 0:01:37]}  Rxc5 {[%clk 0:01:14]} 25. R1e2 {[%clk 0:01:33]}  a5 {[%clk 0:01:13]} 26. a4 {[%clk 0:01:31]}  Rcd5 {[%clk 0:01:04]} 27. Re5 {[%clk 0:01:26]}  Kf6 {[%clk 0:00:50]} 28. Rxd5 {[%clk 0:01:25]}  Rxd5 {[%clk 0:00:50]} 29. b4 {[%clk 0:01:25]}  Ke7 {[%clk 0:00:47]} 30. Rd2 {[%clk 0:01:22]}  Rxd2+ {[%clk 0:00:38]} 31. Kxd2 {[%clk 0:01:23]}  Kd6 {[%clk 0:00:38]} 32. Kd3 {[%clk 0:01:22]}  f6 {[%clk 0:00:31]} 33. Kc4 {[%clk 0:01:09]}  Kc6 {[%clk 0:00:27]} 34. Kd4 {[%clk 0:01:06]}  Kd6 {[%clk 0:00:26]} 35. Ke4 {[%clk 0:01:04]}  Kc6 {[%clk 0:00:18]} 36. h4 {[%clk 0:01:01]}  h5 {[%clk 0:00:16]} 37. Kd4 {[%clk 0:01:01]}  Kd6 {[%clk 0:00:16]} 38. Kc4 {[%clk 0:01:00]}  Kc6 {[%clk 0:00:17]} 39. b5+ {[%clk 0:00:37]}  Kd6 {[%clk 0:00:16]} 40. Kd4 {[%clk 0:00:38]}  Kd7 {[%clk 0:00:15]} 41. Ke3 {[%clk 0:00:31]}  Kd6 {[%clk 0:00:15]} 42. Kd4 {[%clk 0:00:31]}  Kd7 {[%clk 0:00:15]} 43. c4 {[%clk 0:00:17]}  Kd6 {[%clk 0:00:15]} 44. c5+ {[%clk 0:00:18]}  bxc5+ {[%clk 0:00:16]} 45. Kc4 {[%clk 0:00:19]}  e5 {[%clk 0:00:16]} 46. fxe5+ {[%clk 0:00:19]}  fxe5 {[%clk 0:00:16]} 47. b6 {[%clk 0:00:19]}  e4 {[%clk 0:00:17]} 48. b7 {[%clk 0:00:20]}  Kc7 {[%clk 0:00:17]} 49. Kxc5 {[%clk 0:00:17]}  e3 {[%clk 0:00:16]} 50. b8=N {[%clk 0:00:16]}  Kxb8 {[%clk 0:00:15]} 51. Kb5 {[%clk 0:00:16]}  e2 {[%clk 0:00:15]} 52. Kxa5 {[%clk 0:00:17]}  e1=Q+ {[%clk 0:00:15]} 53. Kb6 {[%clk 0:00:18]}  Qxg3 {[%clk 0:00:15]} 54. a5 {[%clk 0:00:19]}  Qxh4 {[%clk 0:00:15]} 55. a6 {[%clk 0:00:20]}  Qb4+ {[%clk 0:00:15]} 56. Kc6 {[%clk 0:00:13]}  Ka7 {[%clk 0:00:15]} 0-1


[Site "https://www.chess.com"]

[Event "Titled Tuesday Blitz November 01 Late 2022"]
[White "Bortnyk, Olexandr"]
[Black "Firouzja, Alireza"]
[WhiteFideId "14120828"]
[BlackFideId "12573981"]
[WhiteElo "3038"]
[BlackElo "3118"]
[Result "1/2-1/2"]
[Round "09"]
[TimeControl "180+1"]
[Date "2022.11.01"]
[WhiteClock "0:00:14"]
[BlackClock "0:00:04"]

1. e4 {[%clk 0:03:00]}  c5 {[%clk 0:02:59]} 2. c3 {[%clk 0:03:00]}  Nf6 {[%clk 0:02:55]} 3. e5 {[%clk 0:03:00]}  Nd5 {[%clk 0:02:56]} 4. d4 {[%clk 0:03:01]}  cxd4 {[%clk 0:02:55]} 5. Nf3 {[%clk 0:03:02]}  d6 {[%clk 0:02:51]} 6. cxd4 {[%clk 0:03:01]}  Nc6 {[%clk 0:02:49]} 7. Bc4 {[%clk 0:03:00]}  Nb6 {[%clk 0:02:49]} 8. Bb5 {[%clk 0:03:00]}  Bd7 {[%clk 0:02:47]} 9. Nc3 {[%clk 0:02:47]}  dxe5 {[%clk 0:02:47]} 10. dxe5 {[%clk 0:02:31]}  g6 {[%clk 0:02:46]} 11. O-O {[%clk 0:02:19]}  Bg7 {[%clk 0:02:47]} 12. Bf4 {[%clk 0:02:12]}  O-O {[%clk 0:02:46]} 13. h3 {[%clk 0:01:50]}  a6 {[%clk 0:02:42]} 14. Bd3 {[%clk 0:01:47]}  Qc7 {[%clk 0:02:40]} 15. Re1 {[%clk 0:01:42]}  Rad8 {[%clk 0:02:40]} 16. Qe2 {[%clk 0:01:35]}  Be6 {[%clk 0:02:40]} 17. Rac1 {[%clk 0:01:30]}  Qb8 {[%clk 0:02:38]} 18. Qe3 {[%clk 0:01:19]}  Nd5 {[%clk 0:02:36]} 19. Nxd5 {[%clk 0:01:15]}  Bxd5 {[%clk 0:02:37]} 20. e6 {[%clk 0:01:11]}  Qc8 {[%clk 0:02:31]} 21. exf7+ {[%clk 0:01:02]}  Bxf7 {[%clk 0:02:31]} 22. Bc4 {[%clk 0:00:49]}  Qf5 {[%clk 0:02:27]} 23. Bh6 {[%clk 0:00:42]}  Bxb2 {[%clk 0:02:20]} 24. Rb1 {[%clk 0:00:33]}  Bxc4 {[%clk 0:02:01]} 25. Bxf8 {[%clk 0:00:23]}  Rd3 {[%clk 0:01:44]} 26. Qe4 {[%clk 0:00:20]}  Qxe4 {[%clk 0:01:43]} 27. Rxe4 {[%clk 0:00:21]}  Bd5 {[%clk 0:01:43]} 28. Re3 {[%clk 0:00:16]}  Rxe3 {[%clk 0:01:38]} 29. fxe3 {[%clk 0:00:17]}  Bf6 {[%clk 0:01:23]} 30. Bh6 {[%clk 0:00:18]}  b5 {[%clk 0:01:24]} 31. a3 {[%clk 0:00:18]}  Na5 {[%clk 0:01:22]} 32. Nd2 {[%clk 0:00:14]}  Nc4 {[%clk 0:01:10]} 33. Nxc4 {[%clk 0:00:13]}  bxc4 {[%clk 0:01:11]} 34. Rb8+ {[%clk 0:00:05]}  Kf7 {[%clk 0:01:11]} 35. Rc8 {[%clk 0:00:06]}  g5 {[%clk 0:01:08]} 36. h4 {[%clk 0:00:05]}  gxh4 {[%clk 0:01:02]} 37. e4 {[%clk 0:00:05]}  Be6 {[%clk 0:00:57]} 38. Rc6 {[%clk 0:00:05]}  c3 {[%clk 0:00:51]} 39. Be3 {[%clk 0:00:04]}  a5 {[%clk 0:00:44]} 40. Rc5 {[%clk 0:00:04]}  a4 {[%clk 0:00:44]} 41. e5 {[%clk 0:00:05]}  Bg7 {[%clk 0:00:43]} 42. Bd4 {[%clk 0:00:05]}  Kg6 {[%clk 0:00:38]} 43. Bxc3 {[%clk 0:00:03]}  Bh6 {[%clk 0:00:36]} 44. Rc7 {[%clk 0:00:03]}  Bg5 {[%clk 0:00:29]} 45. Bb4 {[%clk 0:00:03]}  Kf5 {[%clk 0:00:25]} 46. Bxe7 {[%clk 0:00:02]}  Be3+ {[%clk 0:00:25]} 47. Kh1 {[%clk 0:00:03]}  h3 {[%clk 0:00:23]} 48. gxh3 {[%clk 0:00:02]}  Kxe5 {[%clk 0:00:23]} 49. Bh4 {[%clk 0:00:02]}  Ke4 {[%clk 0:00:13]} 50. Rxh7 {[%clk 0:00:02]}  Bxh3 {[%clk 0:00:12]} 51. Bg3 {[%clk 0:00:02]}  Be6 {[%clk 0:00:11]} 52. Kh2 {[%clk 0:00:01]}  Bb3 {[%clk 0:00:11]} 53. Rh4+ {[%clk 0:00:01]}  Kd3 {[%clk 0:00:11]} 54. Bd6 {[%clk 0:00:02]}  Bc1 {[%clk 0:00:11]} 55. Kg3 {[%clk 0:00:02]}  Kc2 {[%clk 0:00:11]} 56. Kf3 {[%clk 0:00:02]}  Kb2 {[%clk 0:00:10]} 57. Rh2+ {[%clk 0:00:01]}  Kc3 {[%clk 0:00:09]} 58. Ke4 {[%clk 0:00:02]}  Kc4 {[%clk 0:00:09]} 59. Bb4 {[%clk 0:00:02]}  Bg5 {[%clk 0:00:08]} 60. Rh5 {[%clk 0:00:02]}  Bc2+ {[%clk 0:00:09]} 61. Ke5 {[%clk 0:00:02]}  Be3 {[%clk 0:00:09]} 62. Rh2 {[%clk 0:00:01]}  Bd4+ {[%clk 0:00:09]} 63. Kd6 {[%clk 0:00:01]}  Kb3 {[%clk 0:00:09]} 64. Kd5 {[%clk 0:00:01]}  Bb2 {[%clk 0:00:09]} 65. Rh3+ {[%clk 0:00:02]}  Ka2 {[%clk 0:00:09]} 66. Kc4 {[%clk 0:00:02]}  Bb3+ {[%clk 0:00:10]} 67. Kb5 {[%clk 0:00:02]}  Bxa3 {[%clk 0:00:09]} 68. Rh2+ {[%clk 0:00:03]}  Bb2 {[%clk 0:00:09]} 69. Bc3 {[%clk 0:00:03]}  a3 {[%clk 0:00:09]} 70. Kb4 {[%clk 0:00:03]}  Bd5 {[%clk 0:00:09]} 71. Bxb2 {[%clk 0:00:02]}  axb2 {[%clk 0:00:09]} 72. Kc3 {[%clk 0:00:02]}  Ka1 {[%clk 0:00:09]} 73. Rxb2 {[%clk 0:00:03]}  Ba2 {[%clk 0:00:10]} 74. Rb4 {[%clk 0:00:03]}  Bb1 {[%clk 0:00:09]} 75. Kb3 {[%clk 0:00:03]}  Ba2+ {[%clk 0:00:09]} 76. Ka3 {[%clk 0:00:04]}  Bb1 {[%clk 0:00:09]} 77. Rd4 {[%clk 0:00:04]}  Bh7 {[%clk 0:00:09]} 78. Rd1+ {[%clk 0:00:04]}  Bb1 {[%clk 0:00:10]} 79. Rd2 {[%clk 0:00:05]}  Bf5 {[%clk 0:00:09]} 80. Kb3 {[%clk 0:00:05]}  Bg6 {[%clk 0:00:08]} 81. Kc3 {[%clk 0:00:06]}  Bf5 {[%clk 0:00:07]} 82. Rd1+ {[%clk 0:00:06]}  Ka2 {[%clk 0:00:08]} 83. Rd6 {[%clk 0:00:07]}  Ka1 {[%clk 0:00:07]} 84. Ra6+ {[%clk 0:00:07]}  Kb1 {[%clk 0:00:08]} 85. Ra5 {[%clk 0:00:08]}  Bg6 {[%clk 0:00:08]} 86. Rg5 {[%clk 0:00:07]}  Bh7 {[%clk 0:00:07]} 87. Rg2 {[%clk 0:00:07]}  Ka1 {[%clk 0:00:08]} 88. Kb3 {[%clk 0:00:07]}  Bb1 {[%clk 0:00:07]} 89. Rg5 {[%clk 0:00:06]}  Be4 {[%clk 0:00:07]} 90. Re5 {[%clk 0:00:05]}  Bh7 {[%clk 0:00:05]} 91. Re7 {[%clk 0:00:06]}  Bg6 {[%clk 0:00:05]} 92. Ra7+ {[%clk 0:00:05]}  Kb1 {[%clk 0:00:05]} 93. Rg7 {[%clk 0:00:06]}  Bc2+ {[%clk 0:00:04]} 94. Kc3 {[%clk 0:00:07]}  Bf5 {[%clk 0:00:04]} 95. Rg5 {[%clk 0:00:07]}  Bh7 {[%clk 0:00:04]} 96. Rh5 {[%clk 0:00:07]}  Bg6 {[%clk 0:00:05]} 97. Rh6 {[%clk 0:00:07]}  Bf5 {[%clk 0:00:05]} 98. Rh1+ {[%clk 0:00:08]}  Ka2 {[%clk 0:00:05]} 99. Rf1 {[%clk 0:00:09]}  Bh7 {[%clk 0:00:05]} 100. Rf7 {[%clk 0:00:08]}  Bg6 {[%clk 0:00:06]} 101. Rf6 {[%clk 0:00:09]}  Bh7 {[%clk 0:00:06]} 102. Rb6 {[%clk 0:00:09]}  Ka1 {[%clk 0:00:06]} 103. Kb3 {[%clk 0:00:07]}  Bg8+ {[%clk 0:00:05]} 104. Ka3 {[%clk 0:00:07]}  Bh7 {[%clk 0:00:06]} 105. Rb7 {[%clk 0:00:07]}  Bb1 {[%clk 0:00:06]} 106. Rg7 {[%clk 0:00:08]}  Bd3 {[%clk 0:00:06]} 107. Kb4 {[%clk 0:00:09]}  Kb2 {[%clk 0:00:05]} 108. Rg2+ {[%clk 0:00:09]}  Ka1 {[%clk 0:00:04]} 109. Kc3 {[%clk 0:00:09]}  Bh7 {[%clk 0:00:04]} 110. Kb3 {[%clk 0:00:10]}  Bb1 {[%clk 0:00:03]} 111. Rg7 {[%clk 0:00:10]}  Bf5 {[%clk 0:00:03]} 112. Re7 {[%clk 0:00:10]}  Bg6 {[%clk 0:00:03]} 113. Rd7 {[%clk 0:00:09]}  Bf5 {[%clk 0:00:03]} 114. Rd6 {[%clk 0:00:10]}  Be4 {[%clk 0:00:03]} 115. Ra6+ {[%clk 0:00:10]}  Kb1 {[%clk 0:00:03]} 116. Rd6 {[%clk 0:00:11]}  Ka1 {[%clk 0:00:03]} 117. Rd4 {[%clk 0:00:11]}  Bg6 {[%clk 0:00:03]} 118. Ra4+ {[%clk 0:00:12]}  Kb1 {[%clk 0:00:03]} 119. Rg4 {[%clk 0:00:12]}  Bf7+ {[%clk 0:00:03]} 120. Kc3 {[%clk 0:00:13]}  Ka1 {[%clk 0:00:03]} 121. Ra4+ {[%clk 0:00:14]}  Kb1 {[%clk 0:00:04]} 122. Ra6 {[%clk 0:00:14]}  Bg8 {[%clk 0:00:04]} 123. Rb6+ {[%clk 0:00:14]} 1/2-1/2


[Site "https://www.chess.com"]

[Event "Titled Tuesday Blitz November 01 Late 2022"]
[White "Buchenau, Frank"]
[Black "Castellanos Gomez, Alejandro"]
[WhiteFideId "4604350"]
[BlackFideId "22284141"]
[WhiteElo "2157"]
[BlackElo "2168"]
[Result "0-1"]
[Round "09"]
[TimeControl "180+1"]
[Date "2022.11.02"]
[WhiteClock "0:01:08"]
[BlackClock "0:00:01"]

1. e4 {[%clk 0:03:00]}  d5 {[%clk 0:02:48]} 2. exd5 {[%clk 0:03:00]}  c6 {[%clk 0:02:46]} 3. dxc6 {[%clk 0:02:58]}  e5 {[%clk 0:02:46]} 4. d4 {[%clk 0:02:52]}  exd4 {[%clk 0:02:44]} 5. cxb7 {[%clk 0:02:48]}  Bxb7 {[%clk 0:02:42]} 6. Nf3 {[%clk 0:02:46]}  Nc6 {[%clk 0:02:37]} 7. c3 {[%clk 0:02:36]}  dxc3 {[%clk 0:02:23]} 8. Qxd8+ {[%clk 0:02:35]}  Rxd8 {[%clk 0:02:22]} 9. Nxc3 {[%clk 0:02:35]}  Nb4 {[%clk 0:02:16]} 10. Bb5+ {[%clk 0:02:34]}  Ke7 {[%clk 0:02:16]} 11. O-O {[%clk 0:02:30]}  Bxf3 {[%clk 0:02:01]} 12. gxf3 {[%clk 0:02:27]}  Nc2 {[%clk 0:01:59]} 13. Rb1 {[%clk 0:02:14]}  g6 {[%clk 0:01:34]} 14. Bg5+ {[%clk 0:02:05]}  f6 {[%clk 0:01:29]} 15. Rfe1+ {[%clk 0:01:58]}  Nxe1 {[%clk 0:01:26]} 16. Rxe1+ {[%clk 0:01:59]}  Kf7 {[%clk 0:01:23]} 17. Bc4+ {[%clk 0:01:58]}  Kg7 {[%clk 0:01:23]} 18. Be3 {[%clk 0:01:54]}  Rd7 {[%clk 0:01:05]} 19. Ne4 {[%clk 0:01:43]}  Nh6 {[%clk 0:00:39]} 20. Nc5 {[%clk 0:01:33]}  Bxc5 {[%clk 0:00:34]} 21. Bxc5 {[%clk 0:01:32]}  Rc8 {[%clk 0:00:23]} 22. b4 {[%clk 0:01:32]}  Rd2 {[%clk 0:00:14]} 23. Re7+ {[%clk 0:01:28]}  Kh8 {[%clk 0:00:13]} 24. Rxa7 {[%clk 0:01:25]}  Nf5 {[%clk 0:00:11]} 25. Kf1 {[%clk 0:01:22]}  Re8 {[%clk 0:00:07]} 26. Bf7 {[%clk 0:01:17]}  Rd1+ {[%clk 0:00:07]} 27. Kg2 {[%clk 0:01:15]}  Red8 {[%clk 0:00:04]} 28. b5 {[%clk 0:01:13]}  Rc8 {[%clk 0:00:02]} 29. Bb4 {[%clk 0:01:10]}  Nh4+ {[%clk 0:00:02]} 30. Kg3 {[%clk 0:01:09]}  Nf5+ {[%clk 0:00:02]} 31. Kf4 {[%clk 0:01:08]}  Rd4# {[%clk 0:00:01]} 0-1


[Site "https://www.chess.com"]

[Event "Titled Tuesday Blitz November 01 Late 2022"]
[White "Castella Garcia, Fausto"]
[Black "Kirillov, Dmitry"]
[WhiteFideId "3501922"]
[BlackFideId "34180572"]
[WhiteElo "2246"]
[BlackElo "2095"]
[Result "1-0"]
[Round "09"]
[TimeControl "180+1"]
[Date "2022.11.02"]
[WhiteClock "0:00:11"]
[BlackClock "0:00:02"]

1. e4 {[%clk 0:02:58]}  c6 {[%clk 0:03:00]} 2. Nc3 {[%clk 0:02:58]}  d5 {[%clk 0:03:01]} 3. Nf3 {[%clk 0:02:58]}  dxe4 {[%clk 0:03:01]} 4. Nxe4 {[%clk 0:02:58]}  Nf6 {[%clk 0:03:02]} 5. Qe2 {[%clk 0:02:58]}  Nxe4 {[%clk 0:03:02]} 6. Qxe4 {[%clk 0:02:58]}  Nd7 {[%clk 0:03:02]} 7. Bc4 {[%clk 0:02:58]}  Nf6 {[%clk 0:03:03]} 8. Ne5 {[%clk 0:02:58]}  e6 {[%clk 0:03:03]} 9. Qe2 {[%clk 0:02:59]}  Be7 {[%clk 0:03:01]} 10. b3 {[%clk 0:02:58]}  O-O {[%clk 0:03:00]} 11. Bb2 {[%clk 0:02:59]}  Qc7 {[%clk 0:02:57]} 12. O-O {[%clk 0:02:57]}  b5 {[%clk 0:02:57]} 13. Bd3 {[%clk 0:02:57]}  Bb7 {[%clk 0:02:58]} 14. f4 {[%clk 0:02:56]}  a6 {[%clk 0:02:51]} 15. Rf3 {[%clk 0:02:55]}  g6 {[%clk 0:02:03]} 16. Rh3 {[%clk 0:02:28]}  c5 {[%clk 0:02:03]} 17. Rf1 {[%clk 0:01:51]}  Rad8 {[%clk 0:01:51]} 18. Ng4 {[%clk 0:01:46]}  Nxg4 {[%clk 0:01:38]} 19. Qxg4 {[%clk 0:01:46]}  f5 {[%clk 0:01:36]} 20. Qe2 {[%clk 0:01:34]}  Qb6 {[%clk 0:01:05]} 21. c4 {[%clk 0:01:26]}  bxc4 {[%clk 0:00:57]} 22. Bxc4 {[%clk 0:01:23]}  Bd5 {[%clk 0:00:58]} 23. Re3 {[%clk 0:01:08]}  Bxc4 {[%clk 0:00:30]} 24. Qxc4 {[%clk 0:01:07]}  Rd6 {[%clk 0:00:22]} 25. Rfe1 {[%clk 0:00:58]}  Rf7 {[%clk 0:00:05]} 26. Rxe6 {[%clk 0:00:56]}  Rxe6 {[%clk 0:00:05]} 27. Rxe6 {[%clk 0:00:54]}  Qc7 {[%clk 0:00:04]} 28. Be5 {[%clk 0:00:45]}  Qd7 {[%clk 0:00:03]} 29. Rxa6 {[%clk 0:00:37]}  Qxd2 {[%clk 0:00:02]} 30. Ra8+ {[%clk 0:00:35]}  Bf8 {[%clk 0:00:03]} 31. h3 {[%clk 0:00:30]}  Qd1+ {[%clk 0:00:02]} 32. Kh2 {[%clk 0:00:29]}  Qd7 {[%clk 0:00:03]} 33. a4 {[%clk 0:00:19]}  Qb7 {[%clk 0:00:03]} 34. Rb8 {[%clk 0:00:16]}  Qd7 {[%clk 0:00:02]} 35. a5 {[%clk 0:00:15]}  Qc6 {[%clk 0:00:01]} 36. a6 {[%clk 0:00:13]}  h5 {[%clk 0:00:01]} 37. a7 {[%clk 0:00:12]}  Qe4 {[%clk 0:00:01]} 38. Qxe4 {[%clk 0:00:11]}  fxe4 {[%clk 0:00:02]} 39. a8=Q {[%clk 0:00:11]} 1-0


[Site "https://www.chess.com"]